lending/lending_fUSD_20241113
["ID","MTS","AMOUNT","RATE_DAILY","PERIOD"]
[342157748,1731515448648,-2520.88197055,0.000127,2]
[342157750,1731515448658,-500.0,0.00012742,2]
[342157752,1731515448669,-4680.33009631,0.00012759,2]
[342157754,1731515448679,-2520.88197055,0.00012767,2]
[342157756,1731515448690,-51716.66966723,0.00012797,2]
[342157758,1731515448700,-4680.33009631,0.0001283,2]
[342157760,1731515448710,-2520.88197055,0.00012833,2]
[342157762,1731515448720,-250.0,0.00012877,2]
[342157764,1731515448729,-189.99,0.00012893,2]
[342157766,1731515448739,-168.74834319,0.00012897,2]
[342157767,1731515448750,-200.0,0.000129,2]
[342157770,1731515448760,-166.41174456,0.000129,2]
[342157771,1731515448770,-7904.42023158,0.000129,2]
[342157774,1731515448780,-2520.88197055,0.000129,2]
[342157776,1731515448791,-1359.89696767,0.000129,2]
[342157777,1731515448801,-4680.33009631,0.000129,2]
[342157779,1731515448811,-3292.2560881,0.000129,2]
[342157782,1731515448821,-765.56,0.00012907,2]
[342157784,1731515448830,-500.43514332,0.00012973,2]
[342157786,1731515448841,-372.23922507,0.00012973,2]
[342157788,1731515448851,-556.00568647,0.00012973,2]
[342157790,1731515448861,-503.57929234,0.00012973,2]
[342157792,1731515448872,-500.0,0.00012973,2]
[342157794,1731515448882,-151.52,0.00012978,2]
[342157796,1731515448892,-3421.0,0.00012986,2]
[342157798,1731515448903,-6189.0,0.00012986,2]
[342157800,1731515448914,-2000.0,0.00012987,3]
[342157802,1731515448924,-1000.0,0.00012996,2]
[342157804,1731515448934,-558.145973,0.00012996,2]
[342157806,1731515448943,-558.145973,0.00012996,2]
[342157808,1731515448954,-3323.531664,0.00012996,2]
[342157810,1731515448964,-3323.531664,0.00012996,2]
[342157812,1731515448974,-151.0,0.00012996,2]
[342157814,1731515448984,-10000.0,0.00012996,2]
[342157817,1731515448997,-155.542696,0.00012996,2]
[342157819,1731515449008,-10000.0,0.00012996,2]
[342157821,1731515449018,-151.0,0.00012996,2]
[342157822,1731515449028,-327527.10646836,0.00012997,2]
[342158352,1731515520294,10546.87488718,0.000129,7]
[342158354,1731515595539,2000.0,0.00025013,120]
[342158355,1731515595980,2000.0,0.00026113,120]
[342158359,1731515938375,727.4,0.00016658,30]
[342158360,1731516025477,-1133.7851,9.46e-05,2]
[342158361,1731516025503,-2545.0,9.56e-05,2]
[342158362,1731516025526,-200.0,9.7e-05,3]
[342158364,1731516068312,-500.0,9.8e-05,3]
[342158365,1731516068334,-800.0,9.9e-05,3]
[342158366,1731516068355,-1020.64101812,9.9e-05,2]
[342158367,1731516068377,-1100.0,0.0001,3]
[342158368,1731516089100,-1500.0,0.00010958,2]
[342158369,1731516110792,-250.0,0.00011039,2]
[342158370,1731516110816,-150.99,0.00011039,2]
[342158371,1731516110839,-1856.25,0.00011184,2]
[342158372,1731516110864,-300.0,0.00011352,2]
[342158373,1731516110888,-1618.33388188,0.00011353,2]
[342158375,1731516196158,2000.0,0.00025576,120]
[342158376,1731516196907,2000.0,0.0002681,120]
[342158377,1731516203772,500.0,0.00025576,120]
[342158378,1731516204175,500.0,0.00026999,120]
[342158402,1731516632015,-414.75,9.099e-05,2]
[342158403,1731516632074,-2258.84,9.099e-05,2]
[342158404,1731516632084,-7278.5952884,0.0001072,2]
[342158405,1731516632094,-200.0,0.0001082,2]
[342158406,1731516632103,-1000.0,0.00010823,2]
[342158407,1731516632114,-5001.92300755,0.00010913,2]
[342158408,1731516632123,-163.3481537,0.00011013,2]
[342158409,1731516632132,-4706.52,0.00011063,2]
[342158410,1731516632142,-5769.0,0.00011113,2]
[342158411,1731516632151,-459.34,0.00011183,2]
[342158412,1731516632161,-300.78,0.00011213,2]
[342158413,1731516632170,-166.66,0.00011251,2]
[342158414,1731516632179,-163.34815369,0.00011263,2]
[342158415,1731516632190,-193.43224566,0.00011347,2]
[342158416,1731516632204,-56.56775434,0.00011347,2]
[342158417,1731516632214,-473.87278827,0.00011352,2]
[342158418,1731516632226,-526.12721173,0.00011352,2]
[342158419,1731516632235,-17288.50689372,0.00011353,2]
[342158420,1731516632246,-3869.44697151,0.00011353,2]
[342158422,1731516632259,-1123.71225289,0.00011353,2]
[342158423,1731516632268,-2172.31158739,0.00011363,2]
[342158424,1731516632280,-501.27841261,0.00011363,2]
[342158425,1731516632290,-2000.0,0.00011567,2]
[342158426,1731516632299,-150.0,0.00011616,2]
[342158427,1731516632309,-167.0,0.00011712,2]
[342158428,1731516632318,-967.64,0.00011726,2]
[342158429,1731516632328,-250.0,0.00011745,2]
[342158430,1731516632338,-3548.48,0.00011745,2]
[342158431,1731516632347,-300.78,0.00011774,2]
[342158432,1731516632357,-340.66,0.00011844,2]
[342158433,1731516632367,-1450.0,0.00012,2]
[342158434,1731516632376,-150.0,0.00012066,2]
[342158435,1731516632386,-7342.1071,0.00012067,2]
[342158436,1731516632396,-2020.2892,0.00012067,2]
[342158437,1731516632405,-763.15,0.00012137,2]
[342158438,1731516632415,-763.15,0.00012137,2]
[342158439,1731516632425,-344.52,0.00012137,2]
[342158440,1731516632434,-498.8326,0.00012156,2]
[342158441,1731516632444,-1000.0,0.00012156,2]
[342158442,1731516632456,-2500.0,0.00012156,2]
[342158443,1731516632465,-4495.50009633,0.00012156,2]
[342158444,1731516632474,-453.0,0.00012167,2]
[342158445,1731516632483,-1255.0,0.00012167,2]
[342158446,1731516632492,-563.0,0.00012167,2]
[342158447,1731516632502,-150.0,0.00012167,2]
[342158448,1731516632511,-628.0,0.00012167,2]
[342158449,1731516632520,-1992.0,0.00012167,2]
[342158450,1731516632530,-559.0,0.00012167,2]
[342158451,1731516632539,-1924.0,0.00012167,2]
[342158452,1731516632549,-1259.0,0.00012167,2]
[342158453,1731516632558,-814.0,0.00012167,2]
[342158454,1731516632568,-3745.0,0.00012167,2]
[342158455,1731516632577,-922.0,0.00012167,2]
[342158456,1731516632587,-3488.0,0.00012167,2]
[342158457,1731516632596,-5931.0,0.00012167,2]
[342158458,1731516632605,-156.181,0.00012167,2]
[342158459,1731516632615,-150.0,0.00012167,2]
[342158460,1731516632624,-13637.0,0.00012167,2]
[342158461,1731516632634,-200.0,0.00012167,2]
[342158462,1731516632643,-250.0,0.00012167,2]
[342158463,1731516632653,-1000.0,0.00012176,2]
[342158464,1731516632662,-433.16,0.00012192,2]
[342158465,1731516632671,-4495.50009631,0.00012239,2]
[342158466,1731516632681,-178.8397,0.00012256,2]
[342158467,1731516632690,-46772.93179469,0.00012256,2]
[342158468,1731516632709,-923.27,0.00012167,2]
[342158476,1731516637927,-167.73,0.00012167,2]
[342158477,1731516637937,-12396.94481592,0.00012256,2]
[342158478,1731516637953,-4973.97643515,0.00012256,2]
[342158479,1731516637965,-3300.36436133,0.00012256,2]
[342158480,1731516637977,-1100.29839631,0.00012256,2]
[342158481,1731516637988,-532.177731,0.00012256,2]
[342158483,1731516638178,-277.8519229,0.00012256,2]
[342158484,1731516638190,-335.7487746,0.00012256,2]
[342158485,1731516638204,-17481.88814921,0.00012256,2]
[342158486,1731516638216,-18535.53835243,0.00012256,2]
[342158487,1731516638228,-85069.05217291,0.00012256,2]
[342158488,1731516638254,-748.51535613,0.00012256,2]
[342158489,1731516638266,-1203.11969526,0.00012256,2]
[342158490,1731516638279,-924.91614,0.00012256,2]
[342158491,1731516638290,-5412.30996001,0.00012256,2]
[342158492,1731516638319,-348.147637,0.00012256,2]
[342158493,1731516638331,-15827.35210515,0.00012256,2]
[342158494,1731516638341,-39290.5146,0.00012256,2]
[342158495,1731516638351,-795.6695,0.00012256,2]
[342158496,1731516638362,-48448.3359,0.00012256,2]
[342158497,1731516638372,-500.0,0.000123,2]
[342158498,1731516638382,-4495.50009631,0.00012321,2]
[342158499,1731516638392,-1832.54,0.00012329,2]
[342158501,1731516638402,-300.78,0.00012334,2]
[342158503,1731516638412,-1000.0,0.00012356,2]
[342158505,1731516638422,-37889.5893,0.00012356,2]
[342158507,1731516638431,-20791.51101563,0.00012356,2]
[342158683,1731516640039,-57783.5924998,0.00012356,2]
[342158688,1731516640063,-316.73,0.00012356,2]
[342158691,1731516640075,-21108.16648457,0.00012356,2]
[342158694,1731516640084,-463.40462932,0.00012399,2]
[342158697,1731516640093,-70090.42888615,0.000124,2]
[342158741,1731516640380,-812.26,0.00011846,2]
[342158743,1731516640390,-91.19619527,0.00012167,2]
[342158746,1731516640411,-58.80380473,0.00012167,2]
[342158748,1731516640420,-5275.28653072,0.000124,2]
[342158750,1731516640431,-10125.24705752,0.000124,2]
[342158753,1731516640447,-530.05,0.000124,2]
[342158755,1731516640460,-28137.142931,0.000124,2]
[342158760,1731516640494,-1217.70939461,0.000124,2]
[342158762,1731516640504,-4495.50009631,0.00012404,2]
[342158764,1731516640513,-4495.50009631,0.00012487,2]
[342158766,1731516640523,-4495.50009631,0.00012569,2]
[342158768,1731516640533,-459.34,0.00012581,2]
[342158770,1731516640543,-4495.50009631,0.00012652,2]
[342158772,1731516640552,-151.0,0.0001269,2]
[342158774,1731516640562,-151.0,0.0001269,2]
[342158776,1731516640570,-155.956594,0.0001269,2]
[342158778,1731516640579,-297.097415,0.0001269,2]
[342158780,1731516640588,-151.0,0.0001269,2]
[342158782,1731516640598,-165.059225,0.0001269,2]
[342158784,1731516640606,-151.0,0.0001269,2]
[342158786,1731516640615,-168.952927,0.0001269,2]
[342158787,1731516640624,-168.952927,0.0001269,2]
[342158789,1731516640634,-168.952927,0.0001269,2]
[342158791,1731516640643,-168.952927,0.0001269,2]
[342158793,1731516640652,-151.0,0.0001269,2]
[342158795,1731516640661,-151.0,0.0001269,2]
[342158797,1731516640671,-247.144186,0.0001269,2]
[342158799,1731516640680,-1477.0,0.00012728,2]
[342158801,1731516640690,-4495.50009631,0.00012735,2]
[342158803,1731516640703,-4495.50009631,0.00012817,2]
[342158806,1731516640713,-426.41767423,0.00012844,2]
[342158807,1731516640723,-250.0,0.00012877,2]
[342158809,1731516640733,-300.78,0.00012895,2]
[342158812,1731516640743,-166.41174456,0.00012897,2]
[342158814,1731516640753,-207.01885934,0.00012897,2]
[342158815,1731516640763,-168.7483432,0.00012897,2]
[342158818,1731516640773,-200.0,0.000129,2]
[342158819,1731516640782,-5481.47968401,0.000129,2]
[342158821,1731516640791,-7113.97820844,0.000129,2]
[342158824,1731516640801,-3111.04638575,0.000129,2]
[342158968,1731516642290,-500.0,0.00012399,2]
[342158970,1731516642299,-1384.45371056,0.000129,2]
[342158971,1731516642309,-1050.0,0.000129,2]
[342158974,1731516642319,-1659.14628944,0.00012985,2]
[342159048,1731516642920,-1114.47025556,0.00012985,2]
[342159051,1731516642930,-5876.7414966,0.00012985,2]
[342159054,1731516642940,-12379.9977969,0.00012985,2]
[342159057,1731516642953,-5283.652,0.00012986,2]
[342159060,1731516642965,-172.509,0.00012986,2]
[342159062,1731516642974,-598.87328536,0.00012994,2]
[342159064,1731516642985,-1000.0,0.00012996,2]
[342159066,1731516642994,-151.0,0.00012996,2]
[342159068,1731516643004,-200.103084,0.00012996,2]
[342159070,1731516643014,-168.952927,0.00012996,2]
[342159072,1731516643026,-168.952927,0.00012996,2]
[342159074,1731516643035,-196.91855993,0.00012996,2]
[342159076,1731516643045,-494.22866765,0.00012996,2]
[342159079,1731516643064,-22.46754161,0.00012996,2]
[342159081,1731516643074,-516.69620926,0.00012996,2]
[342159083,1731516643083,-516.69620926,0.00012996,2]
[342159085,1731516643092,-516.69620926,0.00012996,2]
[342159087,1731516643102,-516.69620926,0.00012996,2]
[342159089,1731516643112,-516.69620926,0.00012996,2]
[342159091,1731516643122,-516.69620926,0.00012996,2]
[342159093,1731516643131,-516.69620926,0.00012996,2]
[342159095,1731516643140,-516.69620926,0.00012996,2]
[342159097,1731516643149,-516.69620926,0.00012996,2]
[342159099,1731516643159,-516.69620926,0.00012996,2]
[342159101,1731516643168,-516.69620926,0.00012996,2]
[342159103,1731516643177,-516.69620926,0.00012996,2]
[342159105,1731516643186,-516.69620926,0.00012996,2]
[342159107,1731516643195,-516.69620926,0.00012996,2]
[342159109,1731516643207,-516.69620926,0.00012996,2]
[342159111,1731516643216,-516.69620926,0.00012996,2]
[342159113,1731516643225,-533.91941622,0.00012996,2]
[342159115,1731516643234,-421.10637145,0.00012996,2]
[342159119,1731516643255,-112.81304477,0.00012996,2]
[342159121,1731516643265,-533.91941622,0.00012996,2]
[342159123,1731516643274,-533.91941622,0.00012996,2]
[342159125,1731516643284,-0.95039982,0.00012996,2]
[342159127,1731516643295,-532.9690164,0.00012996,2]
[342159129,1731516643305,-533.91941622,0.00012996,2]
[342159131,1731516643314,-533.91941622,0.00012996,2]
[342159133,1731516643323,-533.91941622,0.00012996,2]
[342159135,1731516643333,-151.0,0.00012996,2]
[342159137,1731516643343,-1137.66272265,0.00012996,3]
[342159139,1731516643352,-781.0,0.00012997,2]
[342159141,1731516643362,-22097.48635577,0.00012997,2]
[342159146,1731516643403,-4154.3609,0.00012997,2]
[342159148,1731516643415,-534.362006,0.00012997,2]
[342159151,1731516643426,-345.1890866,0.00012997,2]
[342159153,1731516643438,-866.70164818,0.00012997,2]
[342159155,1731516643449,-9177.1,0.00012997,2]
[342159159,1731516643479,-5983.25,0.00012997,2]
[342159161,1731516643491,-6399.24896003,0.00012997,2]
[342159417,1731516645929,-248.804,0.00012167,2]
[342159419,1731516645939,-282.457,0.00012167,2]
[342159421,1731516645953,-8643.639,0.00012997,2]
[342159423,1731516645967,-469.06519155,0.00012997,2]
[342159427,1731516645992,-80108.7237469,0.00012997,2]
[342159429,1731516646003,-52229.41464901,0.00012997,2]
[342159431,1731516646014,-14065.7505,0.00012997,2]
[342159433,1731516646027,-29553.97,0.00012997,2]
[342159436,1731516646041,-78010.88422,0.00012997,2]
[342159438,1731516646052,-22902.5,0.00012997,2]
[342159440,1731516646063,-4784.48427397,0.00012997,2]
[342159444,1731516646094,-2928.29677792,0.00012997,2]
[342159447,1731516646106,-50208.0083,0.00012997,2]
[342159461,1731516646238,-1096.08162457,0.00012997,2]
[342159464,1731516646250,-2460.9615079,0.00012997,2]
[342159466,1731516646261,-88653.46508127,0.00012997,2]
[342159468,1731516646273,-920.37,0.00012997,2]
[342159470,1731516646285,-220398.47051552,0.00012997,2]
[342159472,1731516646296,-50904.10603509,0.00012997,2]
[342159476,1731516646321,-858.91633752,0.00012997,2]
[342159478,1731516646332,-66132.0,0.00012997,2]
[342159966,1731516745075,691.03,0.00016658,30]
[342159967,1731516796172,2000.0,0.00025686,120]
[342159968,1731516796953,2000.0,0.00026999,120]
[342159969,1731516802289,500.0,0.00025686,120]
[342159970,1731516805366,200.0,0.00025686,120]
[342159971,1731516813658,2000.0,0.00027,60]
[342159972,1731516824950,2008.4843,0.00027,60]
[342159973,1731516830022,-7756.27810824,0.00035131,7]
[342159974,1731516830044,-10081.31491213,0.00035131,7]
[342159975,1731516830069,-689.9025496,0.00035131,10]
[342159976,1731516830095,-2191.72255631,0.00035131,10]
[342159977,1731516830119,-846.43288552,0.00035131,10]
[342159978,1731516830140,-1000.0,0.00035131,10]
[342159979,1731516830162,-500.0,0.00035131,10]
[342159980,1731516830184,-16934.3489882,0.00035131,14]
[342159981,1731516956686,4000.0,0.00027,60]
[342159982,1731517204186,174.79768687,0.000129,7]
[342159984,1731517263381,150.0,8.923e-05,2]
[342159985,1731517263404,249.2522267,8.923e-05,2]
[342159986,1731517263433,2071.6077733,8.923e-05,2]
[342159990,1731517398589,2000.0,0.0002636,120]
[342159991,1731517402433,500.0,0.0002636,120]
[342159992,1731517432846,656.47,0.00016658,30]
[342159993,1731517566506,163.93,8.219e-05,2]
[342159994,1731517623897,-3226.33320844,0.0001,2]
[342159995,1731517623929,-787.01433415,0.0001,2]
[342159996,1731517623956,-897.25,0.00010697,2]
[342159997,1731517623984,-2000.0,0.00010739,2]
[342159998,1731517624010,-300.0,0.00010948,2]
[342159999,1731517624036,-11354.21,0.00010949,2]
[342160000,1731517624063,-472.82,0.00010959,2]
[342160001,1731517624089,-250.0,0.00010959,2]
[342160002,1731517624116,-5428.93,0.0001096,2]
[342160003,1731517624143,-2831.67,0.00010988,2]
[342160004,1731517630516,151.24,0.00010841,2]
[342160005,1731517659222,-200.0,0.00011018,2]
[342160006,1731517659252,-1852.42,0.00011018,2]
[342160007,1731517659278,-2470.86,0.00011187,2]
[342160008,1731517659306,-161.81,0.00011439,2]
[342160009,1731517659333,-4226.922,0.00011466,2]
[342160010,1731517659360,-172.509,0.00011466,2]
[342160011,1731517659388,-250.0,0.00011519,2]
[342160012,1731517659415,-2500.0,0.000116,2]
[342160013,1731517659441,-1000.0,0.000116,2]
[342160014,1731517659467,-1300.8954,0.000116,2]
[342160015,1731517659499,-200.0,0.000116,4]
[342160016,1731517659525,-150.0,0.00011608,2]
[342160017,1731517659550,-5078.33299967,0.00011609,2]
[342160018,1731517659574,-176.03347418,0.00011609,2]
[342160019,1731517659598,-151.96838295,0.00011609,2]
[342160020,1731517659622,-160.4016009,0.00011609,2]
[342160021,1731517659648,-158.52488593,0.00011645,2]
[342160022,1731517659672,-559.0,0.0001166,2]
[342160023,1731517659697,-1924.0,0.0001166,2]
[342160024,1731517659721,-1259.0,0.0001166,2]
[342160025,1731517659749,-814.0,0.0001166,2]
[342160026,1731517659774,-3745.0,0.0001166,2]
[342160027,1731517659800,-3488.0,0.0001166,2]
[342160028,1731517659824,-922.0,0.0001166,2]
[342160029,1731517659849,-13637.0,0.0001166,2]
[342160030,1731517659873,-1091.0,0.0001166,2]
[342160031,1731517659902,-500.0,0.00011673,2]
[342160032,1731517660230,-150.00000001,0.00011688,2]
[342160033,1731517660268,-500.0,0.00011699,2]
[342160034,1731517660296,-500.0,0.00011699,2]
[342160035,1731517660324,-500.0,0.00011699,2]
[342160036,1731517660352,-500.0,0.00011699,2]
[342160037,1731517660378,-500.0,0.00011699,2]
[342160038,1731517660407,-500.0,0.00011699,2]
[342160039,1731517660432,-500.0,0.00011699,2]
[342160040,1731517660458,-500.0,0.00011699,2]
[342160041,1731517660483,-500.0,0.00011699,2]
[342160042,1731517660511,-500.0,0.00011699,2]
[342160043,1731517660536,-500.0,0.00011699,2]
[342160044,1731517660561,-500.0,0.00011699,2]
[342160045,1731517660587,-500.0,0.00011699,2]
[342160046,1731517660611,-500.0,0.00011699,2]
[342160047,1731517660637,-500.0,0.00011699,2]
[342160048,1731517660662,-500.0,0.00011699,2]
[342160049,1731517660687,-500.0,0.00011699,2]
[342160050,1731517660713,-500.0,0.00011699,2]
[342160051,1731517660738,-500.0,0.00011699,2]
[342160052,1731517660764,-500.0,0.00011699,2]
[342160053,1731517660790,-500.0,0.00011699,2]
[342160054,1731517660816,-343.63437194,0.00011699,2]
[342160055,1731517660841,-500.0,0.00011699,2]
[342160056,1731517660868,-500.0,0.00011699,2]
[342160057,1731517660893,-157.22034183,0.00011699,2]
[342160060,1731517737590,150.0,0.00018,30]
[342160080,1731517832090,-250.0,0.00010944,2]
[342160081,1731517832101,-167.0,0.00011317,2]
[342160082,1731517832110,-178.17,0.00011498,2]
[342160083,1731517832120,-192.35566073,0.00011583,2]
[342160084,1731517832136,-2900.64433927,0.00011583,2]
[342160085,1731517832147,-2500.0,0.000116,2]
[342160086,1731517832157,-217.05276592,0.0001169,2]
[342160087,1731517832167,-94.64754863,0.00011699,2]
[342160088,1731517832177,-1500.0,0.00011699,2]
[342160089,1731517832186,-150.0,0.00011699,2]
[342160090,1731517832196,-85417.07234258,0.000117,2]
[342160091,1731517832210,-113237.7066923,0.000117,2]
[342160092,1731517832231,-5015.65756542,0.000117,2]
[342160093,1731517832244,-3265.84936518,0.000117,2]
[342160094,1731517832255,-6577.05458165,0.000117,2]
[342160095,1731517832268,-4316.35153139,0.000117,2]
[342160096,1731517832280,-2689.77712328,0.000117,2]
[342160097,1731517832403,-1106.02,0.000117,2]
[342160106,1731517834337,-500.0,0.000117,4]
[342160107,1731517834366,-800.0,0.000118,4]
[342160108,1731517834394,-1100.0,0.000119,4]
[342160109,1731517834422,-1400.0,0.000125,4]
[342160110,1731517834447,-200.0,0.000126,4]
[342160111,1731517834471,-200.0,0.000127,4]
[342160112,1731517834495,-200.0,0.000128,4]
[342160113,1731517834519,-200.0,0.000129,4]
[342160117,1731517838082,-15858.35093567,0.000117,2]
[342160119,1731517838144,-1488.65006,0.000117,2]
[342160131,1731517838828,-1571.81022979,0.000117,2]
[342160133,1731517838840,-9548.40622298,0.000117,2]
[342160137,1731517838870,-66542.87641038,0.000117,2]
[342160141,1731517838891,-1975.54123503,0.000117,2]
[342160276,1731517840125,-1328.435784,0.000117,2]
[342160279,1731517840140,-1293.704,0.000117,2]
[342160283,1731517840151,-9231.1,0.000117,2]
[342160286,1731517840162,-1886.69166966,0.000117,2]
[342160289,1731517840174,-558.76347945,0.000117,2]
[342160314,1731517840366,-13893.76687218,0.000117,2]
[342160320,1731517840425,-9886.3692,0.000117,2]
[342160365,1731517840916,-245.35583974,0.000117,2]
[342160366,1731517840932,-283.7363514,0.000117,2]
[342160367,1731517840943,-2573.81000036,0.000117,2]
[342160368,1731517840954,-3591.79413,0.000117,2]
[342160369,1731517840965,-1378.62534246,0.000117,2]
[342160591,1731517843142,-1000.0,0.000116,2]
[342160593,1731517843151,-9981.29829179,0.000117,2]
[342160595,1731517843162,-4341.51396675,0.000117,2]
[342160597,1731517843174,-4194.73803719,0.000117,2]
[342160607,1731517843261,-10089.52939716,0.000117,2]
[342160614,1731517843318,-53898.44077841,0.000117,2]
[342160617,1731517843330,-7539.98286366,0.000117,2]
[342160623,1731517843389,-7428.36011897,0.000117,2]
[342160626,1731517843400,-3832.15359548,0.000117,2]
[342160628,1731517843412,-370.1699991,0.000117,2]
[342160630,1731517843423,-687.0372602,0.000117,2]
[342160632,1731517843434,-437.67874507,0.000117,2]
[342161043,1731517847577,-11101.4335199,0.0001169,2]
[342161046,1731517847587,-16588.2746601,0.000117,2]
[342161048,1731517847599,-88776.53804891,0.000117,2]
[342161050,1731517847610,-185437.43280314,0.000117,2]
[342161052,1731517847621,-1517.87103234,0.000117,2]
[342161054,1731517847633,-8249.99999194,0.000117,2]
[342161058,1731517847659,-19695.44902796,0.000117,2]
[342161060,1731517847671,-53938.72057198,0.000117,2]
[342161062,1731517847682,-52100.81014026,0.000117,2]
[342161065,1731517847695,-2032.85161603,0.000117,2]
[342161071,1731517847749,-36011.49188436,0.000117,2]
[342161074,1731517847760,-922.68,0.000117,2]
[342161077,1731517847786,-9236.52729999,0.000117,2]
[342161245,1731517849640,-1194515.97878634,0.000117,2]
[342161248,1731517849670,-152.95,0.00011745,2]
[342161249,1731517849694,-150.39,0.00011745,2]
[342161250,1731517849717,-500.0,0.00011745,2]
[342161252,1731517849741,-462.71,0.00011745,2]
[342161255,1731517849762,-2706.09,0.00011745,2]
[342161257,1731517849790,-524.39,0.00011745,2]
[342161258,1731517849813,-200.0,0.00011745,2]
[342161259,1731517849836,-23900.0,0.00011745,2]
[342161260,1731517849859,-1000.0,0.00011745,2]
[342161261,1731517849881,-4623.01,0.00011745,2]
[342161262,1731517849905,-1698.93,0.00011745,2]
[342161263,1731517849930,-250.0,0.00011745,2]
[342161264,1731517849953,-152.95,0.00011753,2]
[342161268,1731517849975,-293.53,0.00011753,2]
[342161271,1731517849996,-150.99,0.00011753,2]
[342161274,1731517850017,-2454.58,0.00011753,2]
[342161276,1731517850038,-170.93,0.00011753,2]
[342161277,1731517850060,-286.75,0.00011753,2]
[342161278,1731517850083,-383.95,0.00011753,2]
[342161279,1731517850104,-1376.1157,0.00011753,2]
[342161280,1731517850127,-152.95,0.0001176,2]
[342161281,1731517850152,-152.95,0.00011767,2]
[342161282,1731517850174,-152.95,0.00011775,2]
[342161285,1731517850196,-152.95,0.00011782,2]
[342161288,1731517850217,-152.95,0.00011789,2]
[342161291,1731517850240,-152.95,0.00011797,2]
[342161295,1731517850262,-152.95,0.00011804,2]
[342161298,1731517850283,-10727.65,0.00011839,2]
[342161301,1731517850304,-252.602,0.000119,2]
[342161304,1731517850327,-688.18,0.000119,2]
[342161308,1731517850348,-167.0,0.00011904,2]
[342161311,1731517850372,-13637.0,0.00011938,2]
[342161314,1731517850395,-150.0,0.00011938,2]
[342161317,1731517850418,-5931.0,0.00011938,2]
[342161320,1731517850440,-485.009,0.00011938,2]
[342161324,1731517850463,-11517.3832,0.00011967,2]
[342161327,1731517850484,-8182.5423,0.00011967,2]
[342161330,1731517850505,-5578.5548,0.00011967,2]
[342161333,1731517850526,-6653.2873,0.00011967,2]
[342161336,1731517850548,-1069.89691366,0.00011967,2]
[342161645,1731517901458,155.371,0.0002669,60]
[342161646,1731517943909,-2500.0,0.000116,2]
[342161647,1731517943930,-500.0,0.00011673,2]
[342161648,1731517943952,-347.13859257,0.00011673,2]
[342161649,1731517943978,-308.939938,0.00011699,2]
[342161650,1731517944002,-500.0,0.00011699,2]
[342161651,1731517944026,-348.70012007,0.00011699,2]
[342161652,1731517944047,-167.48,0.00011745,2]
[342161653,1731517944069,-192.26,0.00011745,2]
[342161654,1731517944090,-300.0,0.00011966,2]
[342161655,1731517944112,-4966.89100815,0.00011967,2]
[342161656,1731517944134,-2063.00358634,0.00011967,2]
[342161657,1731517944156,-150.0,0.00011999,2]
[342161658,1731517944178,-19011.5906383,0.00012,2]
[342161659,1731517944199,-17580.42952982,0.00012,2]
[342161660,1731517944226,-150.0,0.00012055,2]
[342161661,1731517944248,-865.33,0.00012055,2]
[342161662,1731517944269,-300.0,0.00012055,2]
[342161663,1731517944290,-620.68,0.00012055,2]
[342161664,1731517944312,-150.83,0.00012055,2]
[342161665,1731517944335,-158.52488593,0.00012063,2]
[342161666,1731517944359,-211911.20170082,0.00012067,2]
[342161667,1731518005488,2000.0,0.00025832,120]
[342161668,1731518010555,500.0,0.00025832,120]
[342161672,1731518221341,623.64,0.00016658,30]
[342161676,1731518335699,500.0004,0.00027,60]
[342161677,1731518437022,500.0,0.00027,60]
[342161678,1731518462446,557.352029,0.00027,60]